[Event "Late-Titled-Tuesday-Blitz-June-18-2024"]
[Site "Chess.com"]
[Date "2024.06.18"]
[Round "2"]
[White "FrankDux44"]
[Black "OparinGrigoriy"]
[Result "0-1"]
[WhiteElo "2626"]
[BlackElo "3026"]
[TimeControl "180+1"]
[EndTime "14:16:28 PDT"]
[Termination "OparinGrigoriy won by resignation"]

1. d4 {[%clk 0:03:00.9]} 1... f5 {[%clk 0:03:00]} 2. Nf3 {[%clk 0:02:59.1]} 2...
Nf6 {[%clk 0:03:00.5]} 3. Bf4 {[%clk 0:02:57.8]} 3... d6 {[%clk 0:03:00.2]} 4.
h3 {[%clk 0:02:57.3]} 4... e6 {[%clk 0:03:00.5]} 5. Bh2 {[%clk 0:02:56]} 5...
Be7 {[%clk 0:03:01]} 6. e3 {[%clk 0:02:56.5]} 6... O-O {[%clk 0:03:01.6]} 7. Be2
{[%clk 0:02:56.9]} 7... Qe8 {[%clk 0:03:01.5]} 8. O-O {[%clk 0:02:56.9]} 8...
Nc6 {[%clk 0:03:01.7]} 9. c4 {[%clk 0:02:57.4]} 9... Bd8 {[%clk 0:03:01]} 10.
Nc3 {[%clk 0:02:56.8]} 10... e5 {[%clk 0:03:01.6]} 11. a3 {[%clk 0:02:40.9]}
11... e4 {[%clk 0:02:59.3]} 12. Nd2 {[%clk 0:02:37.4]} 12... Ne7 {[%clk
0:02:58.9]} 13. c5 {[%clk 0:02:35.9]} 13... d5 {[%clk 0:02:58.3]} 14. b4 {[%clk
0:02:29.7]} 14... g5 {[%clk 0:02:57.3]} 15. b5 {[%clk 0:02:29.3]} 15... Ng6
{[%clk 0:02:57.5]} 16. Qb3 {[%clk 0:02:13]} 16... c6 {[%clk 0:02:57.9]} 17. Bd6
{[%clk 0:02:11]} 17... Rf7 {[%clk 0:02:57]} 18. f4 {[%clk 0:02:07.9]} 18... exf3
{[%clk 0:02:56.2]} 19. Nxf3 {[%clk 0:02:04.9]} 19... Qxe3+ {[%clk 0:02:50.6]}
20. Kh1 {[%clk 0:01:58.4]} 20... Ne4 {[%clk 0:02:51]} 21. Rac1 {[%clk
0:01:36.2]} 21... g4 {[%clk 0:02:51.3]} 22. bxc6 {[%clk 0:00:48.9]} 22... bxc6
{[%clk 0:02:48.5]} 23. Qc2 {[%clk 0:00:42.7]} 23... Nxd6 {[%clk 0:02:46.2]} 24.
cxd6 {[%clk 0:00:35.7]} 24... gxf3 {[%clk 0:02:46.5]} 25. Bxf3 {[%clk
0:00:34.3]} 25... Qe6 {[%clk 0:02:44.9]} 26. Na4 {[%clk 0:00:26.9]} 26... Qxd6
{[%clk 0:02:37.9]} 27. Qxc6 {[%clk 0:00:26.2]} 27... Qxc6 {[%clk 0:02:37.2]} 28.
Rxc6 {[%clk 0:00:27.1]} 28... Ne7 {[%clk 0:02:37.6]} 29. Rd6 {[%clk 0:00:25.9]}
29... Bc7 {[%clk 0:02:34.5]} 30. Rxd5 {[%clk 0:00:25.9]} 30... Nxd5 {[%clk
0:02:32.7]} 31. Bxd5 {[%clk 0:00:26.8]} 31... Rb8 {[%clk 0:02:33.3]} 32. Nc5
{[%clk 0:00:26.3]} 32... Bd6 {[%clk 0:02:32]} 33. Re1 {[%clk 0:00:17.7]} 33...
Kg7 {[%clk 0:02:31.3]} 34. Bxf7 {[%clk 0:00:16.6]} 34... Kxf7 {[%clk 0:02:32.2]}
0-1

[Event "Late-Titled-Tuesday-Blitz-June-18-2024"]
[Site "Chess.com"]
[Date "2024.06.18"]
[Round "2"]
[White "TigrVShlyape"]
[Black "Dexter_Dyke"]
[Result "1-0"]
[WhiteElo "2997"]
[BlackElo "2504"]
[TimeControl "180+1"]
[EndTime "14:16:28 PDT"]
[Termination "TigrVShlyape won by resignation"]

1. e4 {[%clk 0:03:00.9]} 1... e6 {[%clk 0:02:59.9]} 2. d4 {[%clk 0:02:59.4]}
2... a6 {[%clk 0:03:00.3]} 3. c4 {[%clk 0:02:54.1]} 3... d5 {[%clk 0:03:00.2]}
4. exd5 {[%clk 0:02:41.9]} 4... exd5 {[%clk 0:03:01.1]} 5. Nf3 {[%clk
0:02:38.9]} 5... Nf6 {[%clk 0:03:00.8]} 6. Bd3 {[%clk 0:02:37]} 6... Bb4+ {[%clk
0:02:59.5]} 7. Nc3 {[%clk 0:02:36.6]} 7... dxc4 {[%clk 0:02:59]} 8. Bxc4 {[%clk
0:02:36.5]} 8... O-O {[%clk 0:02:58.9]} 9. O-O {[%clk 0:02:36.5]} 9... Bg4
{[%clk 0:02:58.8]} 10. a3 {[%clk 0:02:28.1]} 10... Bd6 {[%clk 0:02:57.3]} 11. h3
{[%clk 0:02:27.4]} 11... Bh5 {[%clk 0:02:57]} 12. Bg5 {[%clk 0:02:20.8]} 12...
Nbd7 {[%clk 0:02:56.4]} 13. Re1 {[%clk 0:02:18.1]} 13... h6 {[%clk 0:02:55.7]}
14. Bh4 {[%clk 0:02:16.4]} 14... Re8 {[%clk 0:02:53.7]} 15. Qd3 {[%clk
0:02:14.7]} 15... g5 {[%clk 0:02:18.2]} 16. Bg3 {[%clk 0:02:11.5]} 16... Kg7
{[%clk 0:02:18.2]} 17. Ne5 {[%clk 0:02:08.5]} 17... Bxe5 {[%clk 0:02:11.8]} 18.
dxe5 {[%clk 0:02:07.9]} 18... Ng8 {[%clk 0:01:59.1]} 19. Nd5 {[%clk 0:02:07.1]}
19... Nc5 {[%clk 0:01:49.6]} 20. Qc3 {[%clk 0:02:06.5]} 20... Ne6 {[%clk
0:01:49.4]} 21. b4 {[%clk 0:01:48.7]} 21... c6 {[%clk 0:01:36]} 22. Ne3 {[%clk
0:01:48.4]} 22... Bg6 {[%clk 0:01:35.2]} 23. Rad1 {[%clk 0:01:47.5]} 23... Qb6
{[%clk 0:01:28.6]} 24. Rd6 {[%clk 0:01:45.1]} 24... Rad8 {[%clk 0:01:25]} 25.
Red1 {[%clk 0:01:38]} 25... Rxd6 {[%clk 0:01:23.4]} 26. exd6+ {[%clk 0:01:37.7]}
26... Kh7 {[%clk 0:01:16.8]} 27. d7 {[%clk 0:01:37.4]} 27... Rd8 {[%clk
0:01:16.5]} 28. Bxe6 {[%clk 0:01:35.1]} 28... fxe6 {[%clk 0:01:16.7]} 29. Nc4
{[%clk 0:01:33]} 1-0

[Event "Late-Titled-Tuesday-Blitz-June-18-2024"]
[Site "Chess.com"]
[Date "2024.06.18"]
[Round "2"]
[White "Mikhal867"]
[Black "JEHUBNER"]
[Result "1-0"]
[WhiteElo "2455"]
[BlackElo "2100"]
[TimeControl "180+1"]
[EndTime "14:16:32 PDT"]
[Termination "Mikhal867 won by resignation"]

1. d4 {[%clk 0:02:57.3]} 1... d5 {[%clk 0:02:53.4]} 2. c4 {[%clk 0:02:56.3]}
2... Nf6 {[%clk 0:02:37.1]} 3. cxd5 {[%clk 0:02:54.4]} 3... Nxd5 {[%clk
0:02:36.9]} 4. e4 {[%clk 0:02:54.5]} 4... Nb6 {[%clk 0:02:34.6]} 5. Nc3 {[%clk
0:02:54.7]} 5... e6 {[%clk 0:02:33.5]} 6. Nf3 {[%clk 0:02:49.7]} 6... Nc6 {[%clk
0:02:23.9]} 7. a3 {[%clk 0:02:48.1]} 7... Be7 {[%clk 0:02:19.6]} 8. e5 {[%clk
0:02:43.9]} 8... Nd5 {[%clk 0:02:17.6]} 9. Bd3 {[%clk 0:02:42]} 9... O-O {[%clk
0:02:07.4]} 10. h4 {[%clk 0:02:40.6]} 10... Re8 {[%clk 0:02:00.7]} 11. Bxh7+
{[%clk 0:02:20.7]} 11... Kf8 {[%clk 0:01:12.8]} 12. h5 {[%clk 0:02:14]} 12...
Nxc3 {[%clk 0:00:25.5]} 13. bxc3 {[%clk 0:02:12.5]} 13... Nb8 {[%clk 0:00:17.6]}
14. Qc2 {[%clk 0:01:59.2]} 14... c5 {[%clk 0:00:14.2]} 15. h6 {[%clk 0:01:59]}
15... Bf6 {[%clk 0:00:12.3]} 16. exf6 {[%clk 0:01:55.7]} 16... Qxf6 {[%clk
0:00:13.2]} 17. Bg5 {[%clk 0:01:54.5]} 1-0

[Event "Late-Titled-Tuesday-Blitz-June-18-2024"]
[Site "Chess.com"]
[Date "2024.06.18"]
[Round "2"]
[White "Nicolik"]
[Black "SoCalJuniorChess"]
[Result "1-0"]
[WhiteElo "2651"]
[BlackElo "2217"]
[TimeControl "180+1"]
[EndTime "14:16:33 PDT"]
[Termination "Nicolik won by resignation"]

1. d4 {[%clk 0:03:00.9]} 1... Nf6 {[%clk 0:02:59.6]} 2. Nc3 {[%clk 0:03:01]}
2... g6 {[%clk 0:02:56]} 3. e4 {[%clk 0:03:00]} 3... d6 {[%clk 0:02:55.5]} 4.
Be3 {[%clk 0:02:59.4]} 4... Bg7 {[%clk 0:02:54.5]} 5. Qd2 {[%clk 0:02:57.1]}
5... O-O {[%clk 0:02:53.7]} 6. f3 {[%clk 0:02:56]} 6... c5 {[%clk 0:02:53.6]} 7.
dxc5 {[%clk 0:02:52.7]} 7... Qa5 {[%clk 0:02:53]} 8. cxd6 {[%clk 0:02:50.6]}
8... exd6 {[%clk 0:02:52.1]} 9. Bc4 {[%clk 0:02:46]} 9... Re8 {[%clk 0:02:50.7]}
10. Nge2 {[%clk 0:02:45.4]} 10... Nc6 {[%clk 0:02:47.2]} 11. O-O {[%clk
0:02:43.7]} 11... Ne5 {[%clk 0:02:41.7]} 12. Bb3 {[%clk 0:02:43.4]} 12... Be6
{[%clk 0:02:41.2]} 13. Nf4 {[%clk 0:02:38.6]} 13... Bxb3 {[%clk 0:02:38.4]} 14.
axb3 {[%clk 0:02:39.5]} 14... Qb4 {[%clk 0:02:38.9]} 15. Rfd1 {[%clk 0:02:38]}
15... Rad8 {[%clk 0:02:33]} 16. Rxa7 {[%clk 0:02:36.1]} 16... d5 {[%clk
0:02:32.6]} 17. Ncxd5 {[%clk 0:02:35.3]} 17... Nxd5 {[%clk 0:02:31.3]} 18. Nxd5
{[%clk 0:02:34.3]} 18... Qb5 {[%clk 0:02:25]} 19. Bd4 {[%clk 0:02:18]} 19... Nc6
{[%clk 0:02:09.4]} 20. Bxg7 {[%clk 0:02:13.2]} 20... Kxg7 {[%clk 0:02:08.9]} 21.
Qc3+ {[%clk 0:02:07.1]} 21... Kh6 {[%clk 0:02:05.1]} 22. Ra4 {[%clk 0:01:58.9]}
22... Ne5 {[%clk 0:01:52.5]} 23. Rad4 {[%clk 0:01:54.7]} 23... Nc6 {[%clk
0:01:51]} 24. R4d3 {[%clk 0:01:47.5]} 24... Ne5 {[%clk 0:01:48]} 25. Re3 {[%clk
0:01:46.4]} 25... Rc8 {[%clk 0:01:43.7]} 26. Qd2 {[%clk 0:01:45.9]} 26... Qc5
{[%clk 0:01:40.9]} 27. c4 {[%clk 0:01:36.2]} 27... Nc6 {[%clk 0:01:37.1]} 28.
Kh1 {[%clk 0:01:34.1]} 28... Kg7 {[%clk 0:01:35.7]} 29. Qc3+ {[%clk 0:01:32.4]}
29... Kh6 {[%clk 0:01:31.7]} 30. f4 {[%clk 0:01:32.7]} 30... f6 {[%clk
0:01:10.5]} 31. Qxf6 {[%clk 0:01:24.4]} 1-0

[Event "Late-Titled-Tuesday-Blitz-June-18-2024"]
[Site "Chess.com"]
[Date "2024.06.18"]
[Round "2"]
[White "Heliosis11"]
[Black "osielchesslover2011"]
[Result "0-1"]
[WhiteElo "2449"]
[BlackElo "2180"]
[TimeControl "180+1"]
[EndTime "14:16:43 PDT"]
[Termination "osielchesslover2011 won by resignation"]

1. d4 {[%clk 0:02:59.8]} 1... Nf6 {[%clk 0:02:59.9]} 2. c4 {[%clk 0:03:00.1]}
2... g6 {[%clk 0:02:59.9]} 3. g3 {[%clk 0:03:00.2]} 3... Bg7 {[%clk 0:03:00.1]}
4. Nf3 {[%clk 0:03:00.6]} 4... O-O {[%clk 0:03:00.7]} 5. Bg2 {[%clk 0:03:01.1]}
5... d6 {[%clk 0:03:01.4]} 6. O-O {[%clk 0:03:00.8]} 6... Nbd7 {[%clk 0:03:02]}
7. Nc3 {[%clk 0:03:00.1]} 7... e5 {[%clk 0:02:59.3]} 8. d5 {[%clk 0:03:00.3]}
8... Ne8 {[%clk 0:02:51.1]} 9. e4 {[%clk 0:02:58.1]} 9... f5 {[%clk 0:02:50.2]}
10. b4 {[%clk 0:02:57.9]} 10... a5 {[%clk 0:02:46.7]} 11. Rb1 {[%clk 0:02:52.6]}
11... axb4 {[%clk 0:02:45.8]} 12. Rxb4 {[%clk 0:02:52.8]} 12... Nc5 {[%clk
0:02:46.1]} 13. Ne1 {[%clk 0:02:43.9]} 13... f4 {[%clk 0:02:31.7]} 14. Nd3
{[%clk 0:02:38.5]} 14... g5 {[%clk 0:02:11.5]} 15. Nxc5 {[%clk 0:02:37.7]} 15...
dxc5 {[%clk 0:02:11.4]} 16. Rb1 {[%clk 0:02:38.6]} 16... g4 {[%clk 0:02:10.7]}
17. f3 {[%clk 0:02:34.5]} 17... h5 {[%clk 0:01:59.2]} 18. Ne2 {[%clk 0:02:13.8]}
18... Nd6 {[%clk 0:01:38.8]} 19. gxf4 {[%clk 0:02:12.1]} 19... exf4 {[%clk
0:01:17.2]} 20. Nxf4 {[%clk 0:02:12.5]} 20... Nxc4 {[%clk 0:01:15.4]} 21. Nxh5
{[%clk 0:02:12.8]} 21... Bd4+ {[%clk 0:01:05.5]} 22. Kh1 {[%clk 0:02:12.8]}
22... Qh4 {[%clk 0:01:00.9]} 23. Ng3 {[%clk 0:02:03.3]} 23... gxf3 {[%clk
0:00:54]} 24. Bxf3 {[%clk 0:02:03.2]} 24... Bh3 {[%clk 0:00:41]} 25. Bg2 {[%clk
0:01:58.1]} 25... Rxf1+ {[%clk 0:00:29.9]} 26. Qxf1 {[%clk 0:01:57.4]} 26... Rf8
{[%clk 0:00:30.4]} 27. Qxc4 {[%clk 0:01:56.1]} 27... Bxg2+ {[%clk 0:00:30.1]}
28. Kxg2 {[%clk 0:01:55.6]} 28... Rf2+ {[%clk 0:00:30.7]} 0-1

[Event "Late-Titled-Tuesday-Blitz-June-18-2024"]
[Site "Chess.com"]
[Date "2024.06.18"]
[Round "2"]
[White "nihalsarin"]
[Black "Dhaydon19"]
[Result "1-0"]
[WhiteElo "3202"]
[BlackElo "2655"]
[TimeControl "180+1"]
[EndTime "14:16:45 PDT"]
[Termination "nihalsarin won by resignation"]

1. d4 {[%clk 0:02:54.4]} 1... Nf6 {[%clk 0:02:59.4]} 2. c4 {[%clk 0:02:53.6]}
2... e6 {[%clk 0:02:59.5]} 3. Nf3 {[%clk 0:02:52.8]} 3... d5 {[%clk 0:02:59.1]}
4. Nc3 {[%clk 0:02:53.2]} 4... a6 {[%clk 0:02:56.4]} 5. e3 {[%clk 0:02:46.9]}
5... dxc4 {[%clk 0:02:55.4]} 6. Bxc4 {[%clk 0:02:47.8]} 6... b5 {[%clk
0:02:55.6]} 7. Bb3 {[%clk 0:02:48.5]} 7... Bb7 {[%clk 0:02:55.6]} 8. O-O {[%clk
0:02:46.8]} 8... Be7 {[%clk 0:02:55.1]} 9. Qe2 {[%clk 0:02:29.3]} 9... O-O
{[%clk 0:02:51.5]} 10. e4 {[%clk 0:02:24.7]} 10... b4 {[%clk 0:02:50.7]} 11. e5
{[%clk 0:02:24.8]} 11... bxc3 {[%clk 0:02:47.6]} 12. exf6 {[%clk 0:02:23.7]}
12... Bxf6 {[%clk 0:02:31.7]} 13. bxc3 {[%clk 0:02:23.5]} 13... Nc6 {[%clk
0:02:30.9]} 14. Rb1 {[%clk 0:02:18.1]} 14... Na5 {[%clk 0:02:25.9]} 15. Bc2
{[%clk 0:02:15.1]} 15... Bd5 {[%clk 0:02:22.4]} 16. Nd2 {[%clk 0:01:43.9]} 16...
Qd6 {[%clk 0:02:07.4]} 17. c4 {[%clk 0:01:40.3]} 17... Bc6 {[%clk 0:02:00.8]}
18. Qh5 {[%clk 0:01:38.1]} 18... g6 {[%clk 0:01:46.8]} 19. Qxa5 {[%clk
0:01:36.7]} 19... Qxd4 {[%clk 0:01:45.8]} 20. Bb2 {[%clk 0:01:15.9]} 20... Qg4
{[%clk 0:01:38.1]} 21. f3 {[%clk 0:01:15.6]} 21... Bd4+ {[%clk 0:01:35]} 22. Kh1
{[%clk 0:01:09.4]} 22... Qf4 {[%clk 0:01:34.8]} 23. Bxd4 {[%clk 0:01:04.1]}
23... Qxd4 {[%clk 0:01:34.5]} 24. Be4 {[%clk 0:01:04.4]} 24... Bxe4 {[%clk
0:01:29]} 25. Nxe4 {[%clk 0:01:05.3]} 25... Rab8 {[%clk 0:01:28.1]} 26. Qxc7
{[%clk 0:00:52.7]} 26... Rxb1 {[%clk 0:01:25.4]} 27. Rxb1 {[%clk 0:00:52.1]}
27... Rd8 {[%clk 0:01:25.5]} 28. h3 {[%clk 0:00:51.1]} 28... Rd7 {[%clk
0:01:23]} 29. Qxd7 {[%clk 0:00:50.4]} 1-0

[Event "Late-Titled-Tuesday-Blitz-June-18-2024"]
[Site "Chess.com"]
[Date "2024.06.18"]
[Round "2"]
[White "Fandorine"]
[Black "canhhuan"]
[Result "1-0"]
[WhiteElo "2919"]
[BlackElo "2500"]
[TimeControl "180+1"]
[EndTime "14:16:47 PDT"]
[Termination "Fandorine won by checkmate"]

1. c4 {[%clk 0:03:00.9]} 1... Nf6 {[%clk 0:02:58.5]} 2. Nc3 {[%clk 0:02:52.5]}
2... e5 {[%clk 0:02:46.4]} 3. Nf3 {[%clk 0:02:49.5]} 3... e4 {[%clk 0:02:45.6]}
4. Ng5 {[%clk 0:02:44.2]} 4... Nc6 {[%clk 0:02:40.9]} 5. Ngxe4 {[%clk
0:02:43.5]} 5... Nxe4 {[%clk 0:02:40.6]} 6. Nxe4 {[%clk 0:02:44.3]} 6... Bb4
{[%clk 0:02:40.2]} 7. a3 {[%clk 0:02:44.1]} 7... Ba5 {[%clk 0:02:40.5]} 8. g3
{[%clk 0:02:37.7]} 8... O-O {[%clk 0:02:38.6]} 9. Bg2 {[%clk 0:02:38.4]} 9... d6
{[%clk 0:02:32.4]} 10. O-O {[%clk 0:02:36.5]} 10... Bb6 {[%clk 0:02:31.9]} 11.
d3 {[%clk 0:02:34.3]} 11... Bg4 {[%clk 0:02:29.9]} 12. h3 {[%clk 0:02:24.6]}
12... Bf5 {[%clk 0:02:28.3]} 13. Nc3 {[%clk 0:02:21.7]} 13... Re8 {[%clk
0:02:27]} 14. e3 {[%clk 0:02:16.4]} 14... Bd7 {[%clk 0:02:23.3]} 15. Kh2 {[%clk
0:02:16.3]} 15... Qc8 {[%clk 0:02:21.7]} 16. d4 {[%clk 0:02:14.3]} 16... Ne7
{[%clk 0:02:21.2]} 17. e4 {[%clk 0:02:07.5]} 17... a6 {[%clk 0:02:16.9]} 18. Be3
{[%clk 0:02:06.6]} 18... c5 {[%clk 0:02:15.7]} 19. d5 {[%clk 0:02:06.1]} 19...
Ba5 {[%clk 0:02:15.1]} 20. Rc1 {[%clk 0:02:05.4]} 20... b5 {[%clk 0:02:10.8]}
21. cxb5 {[%clk 0:01:44.8]} 21... Bxb5 {[%clk 0:02:09.5]} 22. Nxb5 {[%clk
0:01:44.8]} 22... axb5 {[%clk 0:02:10.4]} 23. b4 {[%clk 0:01:36.8]} 23... Bb6
{[%clk 0:02:09.3]} 24. bxc5 {[%clk 0:01:36.4]} 24... Bxc5 {[%clk 0:02:10.2]} 25.
Bxc5 {[%clk 0:01:35.5]} 25... dxc5 {[%clk 0:02:11.1]} 26. d6 {[%clk 0:01:36.3]}
26... Qe6 {[%clk 0:02:07.6]} 27. dxe7 {[%clk 0:01:36.5]} 27... Qxe7 {[%clk
0:02:07.6]} 28. Qb3 {[%clk 0:01:33.9]} 28... Rab8 {[%clk 0:02:06.1]} 29. Rfd1
{[%clk 0:01:28.4]} 29... c4 {[%clk 0:02:05.4]} 30. Qb4 {[%clk 0:01:26.7]} 30...
Qxb4 {[%clk 0:02:04.6]} 31. axb4 {[%clk 0:01:26.9]} 31... Rec8 {[%clk
0:02:04.1]} 32. Rd5 {[%clk 0:01:26.2]} 32... Rc7 {[%clk 0:02:03.5]} 33. f4
{[%clk 0:01:23.5]} 33... Ra7 {[%clk 0:02:02.3]} 34. Rcd1 {[%clk 0:01:23.4]}
34... f6 {[%clk 0:02:01.5]} 35. e5 {[%clk 0:01:19.7]} 35... fxe5 {[%clk
0:02:02.3]} 36. Rxe5 {[%clk 0:01:20]} 36... Ra4 {[%clk 0:02:01.2]} 37. Rd7
{[%clk 0:01:17.1]} 37... Rxb4 {[%clk 0:02:01.1]} 38. Ree7 {[%clk 0:01:16.8]}
38... Rb2 {[%clk 0:02:00.7]} 39. Rxg7+ {[%clk 0:01:16.8]} 39... Kh8 {[%clk
0:02:00.7]} 40. Rxh7+ {[%clk 0:01:16.8]} 40... Kg8 {[%clk 0:02:01.1]} 41. Rdg7+
{[%clk 0:01:17.2]} 41... Kf8 {[%clk 0:02:01.4]} 42. f5 {[%clk 0:01:17.9]} 42...
Rb6 {[%clk 0:02:01.2]} 43. g4 {[%clk 0:01:10.5]} 43... Rh6 {[%clk 0:01:58.4]}
44. Rf7+ {[%clk 0:01:07]} 44... Ke8 {[%clk 0:01:58.3]} 45. Re7+ {[%clk
0:01:06.3]} 45... Kf8 {[%clk 0:01:57.7]} 46. Rhf7+ {[%clk 0:01:05.8]} 46... Kg8
{[%clk 0:01:58]} 47. g5 {[%clk 0:01:06.4]} 47... Ra6 {[%clk 0:01:57.5]} 48. Rg7+
{[%clk 0:01:03.2]} 48... Kf8 {[%clk 0:01:57.4]} 49. Ref7+ {[%clk 0:01:01.5]}
49... Ke8 {[%clk 0:01:57.7]} 50. g6 {[%clk 0:01:01.8]} 50... c3 {[%clk
0:01:53.4]} 51. Rg8# {[%clk 0:01:01.9]} 1-0

[Event "Late-Titled-Tuesday-Blitz-June-18-2024"]
[Site "Chess.com"]
[Date "2024.06.18"]
[Round "2"]
[White "moro182"]
[Black "RantomOpening"]
[Result "1-0"]
[WhiteElo "2921"]
[BlackElo "2606"]
[TimeControl "180+1"]
[EndTime "14:16:53 PDT"]
[Termination "moro182 won by resignation"]

1. d4 {[%clk 0:03:00.9]} 1... d5 {[%clk 0:02:59.3]} 2. Bf4 {[%clk 0:02:58.1]}
2... Nf6 {[%clk 0:02:58.7]} 3. e3 {[%clk 0:02:57.6]} 3... e6 {[%clk 0:02:59.1]}
4. Nf3 {[%clk 0:02:56.9]} 4... Bd6 {[%clk 0:02:59.4]} 5. Nbd2 {[%clk 0:02:57]}
5... O-O {[%clk 0:02:59.7]} 6. Bd3 {[%clk 0:02:56.6]} 6... c5 {[%clk 0:02:59.8]}
7. dxc5 {[%clk 0:02:55.8]} 7... Bxf4 {[%clk 0:02:53.1]} 8. exf4 {[%clk
0:02:56.7]} 8... Qc7 {[%clk 0:02:53.1]} 9. g3 {[%clk 0:02:57.1]} 9... Qxc5
{[%clk 0:02:51.7]} 10. Qe2 {[%clk 0:02:57.6]} 10... b6 {[%clk 0:02:47.5]} 11. c3
{[%clk 0:02:57.3]} 11... a5 {[%clk 0:02:27.9]} 12. Nb3 {[%clk 0:02:56.4]} 12...
Qc7 {[%clk 0:02:27.2]} 13. O-O {[%clk 0:02:55.4]} 13... Ba6 {[%clk 0:02:26.2]}
14. Bxa6 {[%clk 0:02:53.6]} 14... Nxa6 {[%clk 0:02:27.1]} 15. Ne5 {[%clk
0:02:53.1]} 15... Nc5 {[%clk 0:02:25.8]} 16. Nd4 {[%clk 0:02:53.3]} 16... Nfd7
{[%clk 0:02:14.9]} 17. Nec6 {[%clk 0:02:49.6]} 17... Nb8 {[%clk 0:02:10.3]} 18.
Nxb8 {[%clk 0:02:42.6]} 18... Raxb8 {[%clk 0:02:11.2]} 19. Rfe1 {[%clk
0:02:41.1]} 19... Qd7 {[%clk 0:02:01.5]} 20. Rad1 {[%clk 0:02:38.1]} 20... b5
{[%clk 0:01:57.9]} 21. h4 {[%clk 0:02:32.1]} 21... Rfc8 {[%clk 0:01:56.4]} 22.
h5 {[%clk 0:02:31.5]} 22... h6 {[%clk 0:01:56.1]} 23. Qg4 {[%clk 0:02:30.7]}
23... Ne4 {[%clk 0:01:31.7]} 24. f5 {[%clk 0:02:30.7]} 24... Nf6 {[%clk
0:01:28]} 25. fxe6 {[%clk 0:02:26.3]} 25... fxe6 {[%clk 0:01:15.6]} 26. Qxe6+
{[%clk 0:02:25.4]} 26... Qxe6 {[%clk 0:01:15.8]} 27. Rxe6 {[%clk 0:02:24.3]}
27... Nxh5 {[%clk 0:01:15.9]} 28. Nf5 {[%clk 0:02:20.3]} 28... Re8 {[%clk
0:01:01.5]} 29. Rxe8+ {[%clk 0:02:15.4]} 29... Rxe8 {[%clk 0:01:02.4]} 30. Rxd5
{[%clk 0:02:15.1]} 30... b4 {[%clk 0:01:02.4]} 31. cxb4 {[%clk 0:02:15.5]} 31...
Re2 {[%clk 0:01:02]} 32. Rxa5 {[%clk 0:02:10.4]} 32... Rxb2 {[%clk 0:01:01.9]}
33. Nxh6+ {[%clk 0:02:09.7]} 33... gxh6 {[%clk 0:00:59.3]} 34. Rxh5 {[%clk
0:02:10.2]} 34... Rxb4 {[%clk 0:00:54.3]} 35. Rxh6 {[%clk 0:02:01.1]} 35... Ra4
{[%clk 0:00:54.5]} 36. Rc6 {[%clk 0:02:01.3]} 36... Rxa2 {[%clk 0:00:54.1]} 37.
Rc7 {[%clk 0:02:00.5]} 37... Ra3 {[%clk 0:00:52.3]} 38. Kg2 {[%clk 0:02:00.8]}
38... Ra4 {[%clk 0:00:53.2]} 39. f3 {[%clk 0:01:58.4]} 39... Kf8 {[%clk
0:00:53.4]} 40. g4 {[%clk 0:01:57.7]} 40... Ra3 {[%clk 0:00:53.5]} 41. Kg3
{[%clk 0:01:58]} 41... Rb3 {[%clk 0:00:54]} 42. g5 {[%clk 0:01:58.2]} 42... Ra3
{[%clk 0:00:54.5]} 43. Kg4 {[%clk 0:01:58.4]} 43... Rb3 {[%clk 0:00:55]} 44. f4
{[%clk 0:01:58.7]} 44... Ra3 {[%clk 0:00:55.5]} 45. g6 {[%clk 0:01:58.8]} 45...
Rc3 {[%clk 0:00:56.1]} 46. g7+ {[%clk 0:01:54.9]} 46... Kg8 {[%clk 0:00:55.9]}
47. Rxc3 {[%clk 0:01:52.2]} 1-0

[Event "Late-Titled-Tuesday-Blitz-June-18-2024"]
[Site "Chess.com"]
[Date "2024.06.18"]
[Round "2"]
[White "ploxoi"]
[Black "CrazyMartian"]
[Result "1-0"]
[WhiteElo "2518"]
[BlackElo "2303"]
[TimeControl "180+1"]
[EndTime "14:16:56 PDT"]
[Termination "ploxoi won by resignation"]

1. d4 {[%clk 0:02:58.4]} 1... d5 {[%clk 0:02:59.5]} 2. Nf3 {[%clk 0:02:58.4]}
2... Nf6 {[%clk 0:02:57.8]} 3. c4 {[%clk 0:02:58.3]} 3... e6 {[%clk 0:02:57]} 4.
g3 {[%clk 0:02:58.4]} 4... Be7 {[%clk 0:02:56.7]} 5. Bg2 {[%clk 0:02:58.9]} 5...
O-O {[%clk 0:02:57.2]} 6. O-O {[%clk 0:02:59.6]} 6... b6 {[%clk 0:02:57.5]} 7.
Nc3 {[%clk 0:02:57.3]} 7... Bb7 {[%clk 0:02:57]} 8. Ne5 {[%clk 0:02:57.6]} 8...
a6 {[%clk 0:02:46.4]} 9. cxd5 {[%clk 0:02:44.1]} 9... Nxd5 {[%clk 0:02:44]} 10.
e4 {[%clk 0:02:35.3]} 10... Nxc3 {[%clk 0:02:34.1]} 11. bxc3 {[%clk 0:02:36.2]}
11... Nd7 {[%clk 0:02:26.3]} 12. Nd3 {[%clk 0:02:33.3]} 12... c5 {[%clk
0:02:12.9]} 13. Be3 {[%clk 0:02:32.7]} 13... cxd4 {[%clk 0:01:49.3]} 14. cxd4
{[%clk 0:02:31.5]} 14... Rc8 {[%clk 0:01:37.4]} 15. Rb1 {[%clk 0:02:27.7]} 15...
Rc3 {[%clk 0:01:16.5]} 16. Qd2 {[%clk 0:02:22.7]} 16... Rc4 {[%clk 0:01:04]} 17.
Qb2 {[%clk 0:02:14.2]} 17... Qa8 {[%clk 0:00:59.5]} 18. f3 {[%clk 0:01:58.9]}
18... Rfc8 {[%clk 0:00:57.3]} 19. Rfc1 {[%clk 0:01:56.7]} 19... b5 {[%clk
0:00:54.5]} 20. Rxc4 {[%clk 0:01:46]} 20... Rxc4 {[%clk 0:00:54]} 21. Bf1 {[%clk
0:01:45.2]} 21... Qc8 {[%clk 0:00:32]} 22. Nc5 {[%clk 0:01:36.5]} 22... Nxc5
{[%clk 0:00:28.1]} 23. Bxc4 {[%clk 0:01:35.4]} 23... Na4 {[%clk 0:00:28.7]} 24.
Qb3 {[%clk 0:01:32.4]} 1-0